Cogmind - Beta 15 *** ADVENTURER MODE // 2025.09.30 @ 14:28:26 Player: nam192 Result: Destroyed by Y-45 Defender with Heavy Assault Rifle Performance ------------- Evolutions (1) 500 Regions Visited (3) 600 Robots Destroyed (21) 105 Value Destroyed (564) 564 Prototype IDs (1) 20 Alien Tech Used (0) 0 Bonus (0) 0 TOTAL SCORE: 1789 Bonus ------- None Cogmind --------- Core Integrity 0/400 Matter 67/300 Energy 100/100 System Corruption 0% Temperature Cool (27) Movement Core (100) Ox1 Location -9/Materials Parts ------- > --- POWER (2) -------- (None) > --- PROPULSION (2) --- (None) > --- UTILITY (2) ------ Small Storage Unit Launcher Guidance Computer > --- WEAPON (3) ------- Mini Grenade Launcher > --- INVENTORY (8) ---- Ion Engine Aluminum Leg Aluminum Leg Wheel Compact Wheel Visual Processing Unit Small Laser Improved Assault Rifle Peak State ------------ > --- POWER ------------ Ion Engine Nuclear Core > --- PROPULSION ------- Light Treads Combat Airjet > --- UTILITY ---------- Small Storage Unit Launcher Guidance Computer > --- WEAPON ----------- Medium Laser Rocket Launcher Mini Grenade Launcher > --- INVENTORY -------- Ion Engine Aluminum Leg Aluminum Leg Wheel Compact Wheel Visual Processing Unit Small Laser Improved Assault Rifle [Rating: 21] Favorites ----------- Power Ion Engine Engine Ion Engine Power Core Nuclear Core Propulsion Light Treads Treads Light Treads Hover Unit Combat Airjet Utility Small Storage Unit Storage Small Storage Unit Processor Launcher Guidance Computer Weapon Medium Laser Energy Gun Medium Laser Ballistic Gun Light Assault Rifle Launcher Mini Grenade Launcher Build | -11 -10 -10 -9 ------- Run | Yrd Mat Min Mat Slots Evolved 2 | . . . 2 Power 1 | . . . 1 Propulsion . | . . . . Utility . | . . . . Weapon 1 | . . . 1 Parts Attached 15 | 6 . 3 6 Power 5 | 1 . 1 3 Engine 3 | 1 . 1 1 Core 2 | . . . 2 Reactor . | . . . . Propulsion 3 | 2 . 1 . Treads 2 | 2 . . . Leg . | . . . . Wheel . | . . . . Hover 1 | . . 1 . Flight . | . . . . Utility 2 | 1 . 1 . Device . | . . . . Storage 1 | 1 . . . Processor 1 | . . 1 . Hackware . | . . . . Protection . | . . . . Artifact . | . . . . Weapon 5 | 2 . . 3 Energy Gun 1 | 1 . . . Energy Cannon . | . . . . Ballistic Gun 2 | 1 . . 1 Ballistic Cannon . | . . . . Launcher 2 | . . . 2 Special Weapon . | . . . . Impact Weapon . | . . . . Slashing Weapon . | . . . . Piercing Weapon . | . . . . Special Melee Weapon . | . . . . Unidentified Prototypes 1 | . . . 1 Parts Lost 8 | . . 1 7 Power 4 | . . 1 3 Propulsion 2 | . . . 2 Utility . | . . . . Weapon 2 | . . . 2 Highest Loss Streak 5 | . . 1 5 To Critical Strikes . | . . . . Average Backups 7 | 4 7 7 7 Power 1 | . 1 1 1 Propulsion 3 | 2 4 4 4 Utility . | . . 1 1 Weapon 1 | . 1 1 1 Tool/Special . | . . . . Unused Backups 8 | . . . 8 Power 1 | . . . 1 Propulsion 4 | . . . 4 Utility 2 | . . . 2 Weapon 1 | . . . 1 Tool/Special . | . . . . Average Slot Usage (%) 81 | . 85 90 77 Engine 11 | . 14 12 10 Core 3 | . . . 5 Treads 12 | . 28 20 5 Hover 7 | . . 6 10 Storage 12 | . 14 14 11 Processor 8 | . . 6 11 Energy Gun 11 | . 14 14 10 Ballistic Gun 7 | . 14 14 2 Launcher 6 | . . . 11 Peak Build Rating 21 | 6 6 14 21 Average Rating 12 | 4 6 9 17 On Entrance 6 | . 6 6 14 Naked Turns . | . . . . Heaviest Build 24 | 13 13 13 24 Greatest Support 40 | 40 40 40 20 Greatest Overweight (x) 6 | . . 1 6 Average Overweight (x) . | . . . 2 Largest Inventory Capacity 8 | 8 8 8 8 Average Capacity 7 | 7 8 8 8 Most Carried 8 | 6 8 8 8 Average Carried 7 | 4 7 7 7 Final Capacity 8 | 8 8 8 8 Final Carried 8 | 6 8 7 8 Class Distribution -------------------- 88% | Mutant 11% | Gunner Dominant Class ---------------- Mutant | -10/Materials Mutant | -10/Mines Mutant | -9/Materials Resources | -11 -10 -10 -9 ----------- Run | Yrd Mat Min Mat Matter Collected 364 | 237 23 44 60 Remotely . | . . . . Salvage Created 565 | . 26 120 419 Parts 39 | . 2 11 26 Haulers Intercepted . | . . . . Recyclers Shooed . | . . . . Parts Field Recycled . | . . . . Retrieved Matter . | . . . . Parts Self-Destructed . | . . . . Prevented . | . . . . Kills | -11 -10 -10 -9 ------- Run | Yrd Mat Min Mat Combat Hostiles Destroyed 14 | . . 4 10 Guns 7 | . . 4 3 AOE 7 | . . . 7 Classes Destroyed 9 | . 1 2 6 Worker 1 | . . . 1 Tunneler 1 | . . . 1 Recycler 2 | . . . 2 Watcher 3 | . 1 . 2 Swarmer 4 | . . 2 2 Grunt 5 | . . . 5 Duelist 1 | . . . 1 Sentry 2 | . . . 2 Demolisher 2 | . . 2 . Best Kill Streak 6 | . 1 2 6 Combat Bots Only 3 | . . 2 3 Max Kills in Single Turn 4 | . 1 1 4 Gunslinging . | . . . . Exploded 2 | . . . 2 Melee . | . . . . Uniques/NPCs Destroyed . | . . . . Combat | -11 -10 -10 -9 -------- Run | Yrd Mat Min Mat Hostile Shots Fired 140 | . 1 18 121 Missed 45 | . 1 2 42 Hits 95 | . . 16 79 Melee 2 | . . . 2 Projectile 93 | . . 16 77 AOE 9 | . . 9 . Critical Strikes 3 | . . . 3 Damage Taken 1238 | . . 366 872 Core 459 | . . 53 406 Absorbed by Shields . | . . . . Ignored by Resistances 359 | . . 103 256 Core Remaining (%) 89 | 100 . 78 . Volleys Fired 40 | . 2 8 30 Largest 3 | . 2 2 3 Hottest 113 | . 70 70 113 Shots Fired 61 | . 4 16 41 Gun 39 | . 4 16 19 Cannon . | . . . . Launcher 22 | . . . 22 Special . | . . . . Kinetic 10 | . 2 8 . Thermal 29 | . 2 8 19 Explosive 22 | . . . 22 Electromagnetic . | . . . . Robot Hit Streak 11 | . 2 5 11 Robot Miss Streak 2 | . 1 1 2 Penetration Max . | . . . . Secondary Targets 1 | . . 1 . Max Gunslinging Chain 1 | . . 1 . Shots Hit Robots 42 | . 2 11 29 Core Hits 42 | . 2 7 33 Critical Kills 1 | . . 1 . Critical Parts Destroyed . | . . . . Critical Strikes 2 | . . 1 1 Burn 1 | . . . 1 Destroy 1 | . . 1 . Melee Attacks . | . . . . Impact . | . . . . Slashing . | . . . . Piercing . | . . . . Sneak Attacks . | . . . . Combat Hostiles . | . . . . Follow-up Attacks . | . . . . Damage Inflicted 1503 | . 20 111 1372 Guns 293 | . 19 111 163 Cannons . | . . . . Explosions 1206 | . . . 1206 Melee . | . . . . Ramming 4 | . 1 . 3 Kinetic 55 | . 6 49 . Thermal 238 | . 13 62 163 Explosive 1206 | . . . 1206 Electromagnetic . | . . . . Impact . | . . . . Slashing . | . . . . Piercing . | . . . . Highest Corruption . | . . . . Average Corruption . | . . . . Corruption Purged . | . . . . Corruption Blocked . | . . . . Overload Shots . | . . . . Overflow Damage 35 | . . . 35 Projectiles . | . . . . Explosions 35 | . . . 35 Melee . | . . . . Knockbacks . | . . . . Impact . | . . . . Kinetic . | . . . . Secondary . | . . . . Self-Inflicted Damage 79 | . . . 79 Shots 5 | . . . 5 Rammed 3 | . 1 . 2 Targets Rammed 3 | . 1 . 2 Kicked . | . . . . Crushed . | . . . . Highest Temperature 171 | . 60 50 171 Average Temperature 44 | . 30 22 53 Received Heat Transfer 312 | . . . 312 Siege Activations . | . . . . Martial Activations . | . . . . Shielding Activations . | . . . . Robots Disrupted . | . . . . Combat Hostiles . | . . . . Robots Corrupted . | . . . . Combat Hostiles . | . . . . Parts Fried . | . . . . Impact Corruptions . | . . . . Robots Melted . | . . . . Combat Hostiles . | . . . . Parts Melted 3 | . . . 3 Heat Transferred 777 | . 37 185 555 Parts Sabotaged . | . . . . Parts Stolen . | . . . . Parts Stripped . | . . . . Power Chain Reactions . | . . . . Alert | -11 -10 -10 -9 ------- Run | Yrd Mat Min Mat Maximum Alert Level . | . . . . Low Security (%) 100 | 100 100 100 100 Level 1 . | . . . . Level 2 . | . . . . Level 3 . | . . . . Level 4 . | . . . . Level 5 . | . . . . High Security . | . . . . Max Security . | . . . . Peak Influence 167 | . 7 50 167 Initial . | . . . . Average 38 | . . 17 65 Influence Increases 517 | . 7 100 410 Destroy 0b10 Robot/C 280 | . . 80 200 Destroy 0b10 Robot/NC 35 | . 5 . 30 Destroy Leader 76 | . 2 20 54 Disable Machine 27 | . . . 27 Destroy Structure 99 | . . . 99 Influence Decreases 397 | . 7 100 290 Time Decay 317 | . 7 90 220 Lost Part 80 | . . 10 70 Squads Dispatched 2 | . . . 2 Investigation . | . . . . Extermination . | . . . . Reinforcement 2 | . . . 2 Assault . | . . . . Garrison . | . . . . Intercept . | . . . . Searches Triggered . | . . . . Construction Impeded 2 | . . . 2 Haulers Reinforced . | . . . . Active Scanning Responses . | . . . . Cargo Convoy Interrupts . | . . . . Stealth | -11 -10 -10 -9 --------- Run | Yrd Mat Min Mat Distress Signals 3 | . . 1 2 Communications Jammed . | . . . . Distress Signals . | . . . . Times Spotted 27 | . 4 5 18 Peak Tracking Total 8 | . 2 3 8 Tactical Retreats . | . . . . Traps | -11 -10 -10 -9 ------- Run | Yrd Mat Min Mat Traps Triggered 3 | . . . 3 Indirectly . | . . . . Trap Hack Attempts . | . . . . Triggered . | . . . . Disarmed . | . . . . Reprogrammed . | . . . . Reused . | . . . . Traps Extracted . | . . . . Installed . | . . . . Triggered . | . . . . Machines | -11 -10 -10 -9 ---------- Run | Yrd Mat Min Mat Machines Disabled 3 | . . . 3 Max in Single Turn 2 | . . . 2 Machines Repaired . | . . . . Machines Dismantled . | . . . . Machines Sabotaged . | . . . . Overloaded Fab Kills . | . . . . Hacking | -11 -10 -10 -9 --------- Run | Yrd Mat Min Mat Machines Accessed 1 | . 1 . . Terminals 1 | . 1 . . Fabricators . | . . . . Repair Stations . | . . . . Recycling Units . | . . . . Scanalyzers . | . . . . Garrison Access . | . . . . Total Hacks 2 | . 2 . . Successful 2 | . 2 . . Failed . | . . . . Catastrophic . | . . . . Database Lockouts . | . . . . Manual . | . . . . Terminals 2 | . 2 . . Fabricators . | . . . . Repair Stations . | . . . . Recycling Units . | . . . . Scanalyzers . | . . . . Garrison Access . | . . . . Terminal Hacks 2 | . 2 . . Record 1 | . 1 . . Zone Layout 1 | . 1 . . Fabricator Hacks . | . . . . Repair Station Hacks . | . . . . Recycling Unit Hacks . | . . . . Scanalyzer . | . . . . Garrison Access Hacks . | . . . . Unauthorized Hacks . | . . . . Terminals . | . . . . Fabricators . | . . . . Repair Stations . | . . . . Recycling Units . | . . . . Scanalyzers . | . . . . Garrison Access . | . . . . Data Cores Recovered . | . . . . Used . | . . . . Hacking Detections . | . . . . Full Trace Events . | . . . . Feedback Events . | . . . . Feedback Blocked . | . . . . Robot Schematics Acquired . | . . . . Robots Built . | . . . . Authchips . | . . . . Time . | . . . . Total Robot Build Rating . | . . . . Part Schematics Acquired . | . . . . Parts Built . | . . . . Authchips . | . . . . Time . | . . . . Total Part Build Rating . | . . . . Parts Repaired . | . . . . Time . | . . . . Parts Recycled . | . . . . Recycled Matter . | . . . . Retrieved Matter . | . . . . Retrieved Components . | . . . . Parts Scanalyzed . | . . . . Part Schematics Acquired . | . . . . Parts Damaged . | . . . . Bothacking | -11 -10 -10 -9 ------------ Run | Yrd Mat Min Mat Used RIF Installer . | . . . . Robots Hacked . | . . . . Non-combat . | . . . . Combat . | . . . . Robot Hacks Applied . | . . . . Relay Couplers Released . | . . . . Fabnet Peak Effective % . | . . . . Robots Rewired . | . . . . Allies Hacked . | . . . . Hacks Repelled . | . . . . Allies | -11 -10 -10 -9 -------- Run | Yrd Mat Min Mat Total Allies . | . . . . Largest Group . | . . . . Highest-Rated Group . | . . . . Highest-Rated Ally . | . . . . Total Orders . | . . . . Ally Attacks . | . . . . Total Damage . | . . . . Kills . | . . . . Allies Corrupted . | . . . . Allies Melted . | . . . . Intel | -11 -10 -10 -9 ------- Run | Yrd Mat Min Mat Active Infowar (turns) . | . . . . Robot Analysis Total . | . . . . Derelict Logs Recovered . | . . . . Drone Launches . | . . . . Drone Recoveries . | . . . . Exploration | -11 -10 -10 -9 ------------- Run | Yrd Mat Min Mat Turns Passed 1247 | 135 182 260 670 Spaces Moved 598 | 81 109 149 259 Core 110 | 8 . . 102 Treads 472 | 73 109 133 157 Legs . | . . . . Wheels . | . . . . Hover 16 | . . 16 . Flight . | . . . . Fastest Speed 50 | 50 160 100 100 Average Speed 184 | 149 160 154 222 Slowest Speed 350 | 160 160 160 350 Overloaded Moves . | . . . . Propulsion Burnouts . | . . . . Robots Hopped . | . . . . Potential Cave-ins . | . . . . Cave-ins Triggered . | . . . . Exploration Rate (%) 19 | 6 25 25 23 Regions Visited 3 Branch Regions 1 Pre-discovered Areas . | . . . . Known Exits Taken . | . . . . Unknown Exits Taken 3 | 1 1 1 . Scrap Searched 1 | . . 1 . Spaces Dug . | . . . . Terrain Destroyed 137 | . . . 137 Melee . | . . . . Projectile . | . . . . AOE 137 | . . . 137 Terrain Rammed . | . . . . Walls Destroyed . | . . . . Machines Disabled . | . . . . Actions | -11 -10 -10 -9 --------- Run | Yrd Mat Min Mat Total 680 | 93 113 164 310 Wait . | . . . . Move 595 | 80 108 148 259 Hop . | . . . . Pick Up 14 | 7 2 1 4 Fast Attach 16 | 5 . 2 9 Attach 3 | 1 . 1 1 Detach 1 | . . 1 . Swap 2 | . . 1 1 Drop 6 | . . 2 4 Fire 40 | . 2 8 30 Melee . | . . . . Ram . | . . . . Kick . | . . . . Crush 3 | . 1 . 2 Escape Stasis . | . . . . Rewire . | . . . . Trap . | . . . . Miscellaneous . | . . . . Route ------- -11/Scrapyard -10/Materials -10/Mines -9/Materials History --------- Turn | Location | Event 51 | -11/Scrapyard | Discovered new exit (range 15) 136 | -11/Scrapyard | Entered Materials 233 | -10/Materials | Discovered new exit (range 16) 308 | -10/Materials | Build established: Mutant 318 | -10/Materials | Entered Mines 393 | -10/Mines | Assembled infested the area 572 | -10/Mines | Discovered new exit (range 3) 578 | -10/Mines | Entered Materials 578 | -9/Materials | Evolved 2 slots: Power x1, Weapon x1 1216 | -9/Materials | Core integrity fell below 50% 1240 | -9/Materials | Core integrity fell below 20% 1248 | -9/Materials | Destroyed by Y-45 Defender with Heavy Assault Rifle Last Messages --------------- S-10 Pest destroyed. ALERT: Construction progress impeded, dispatching reinforcements to local area. The unstable cave ceiling collapses. Cmb. Airjet destroyed. W-16 Scout distress signal alerts nearby ally. Acquired Lgt. Ion Engine. Destroyed Lgt. Ion Engine. TF Node disabled. Sensor Array tumbles out of TF Node. Signal Interpreter tumbles out of TF Node. W-16 Scout destroyed. The unstable cave ceiling collapses. Lgt. Ion Engine destroyed. Destroyed Lgt. Ion Engine. U-05 Engineer builds a Wall. Y-45 Defender destroyed. R-06 Scavenger destroyed. U-05 Engineer lays Concrete. Critical hit (Burn: +37). Map ----- +----------------------------------------------------+ | ?????????????????????????????????????????????????? | | ?????????????????????????????????????????????????? | | ?????????????????????????????????????????????????? | | ?????????????????????????????????????????????????? | | ?????????????????????????????????????????????????? | | ?????????????????????????????????????????????????? | | ?????????????????????????????????????????????????? | | ?????????????????????????????????????????????????? | | ?????????????????????????????????????????????????? | | ?????????????????????????????????????????????????? | | ??????????????????????? ??? ?????????????????????? | | ??????????????????????" ??? +? ??????????????????? | | ??????????????????????" "T" # ??????????????????? | | ??????????????????????" """ # ? ????????????????? | | ?????????????????????? # #+#????????????????? | | ??????????????????????# #w# ?????????????????? | | ??????????????????????# u ?????????????????? | | ??????????????????????# Y ??????????????????? | | ?????????????????????## = #??????????????????? | | ?????????????????????? ! #??????????????????? | | ??????????????????????# ???????????????????? | | ?????????????????????## ????????????????????? | | ?????????????#???????# #????????????????????? | | ?????????????# ?????## %! #????????????????????? | | ?????????????# ????# * #????????????????????? | | ?????????????# ???# @ #????????????????????? | | ???????????### [ #????????????????????? | | ????????? [ #????????????????????? | | ???????? Y ##????????????????????? | | ???????? ! Y = #??????????? ?????????? | | ???????? =%* ! #??????????? ?????????? | | ??????????? # !! ##??????????? ?????????? | | ?????????????# # #??????????? ?????????? | | ?????????????# # #??????? ##= ??????? | | ????????? ?#######?# #?????? ! ?????? | | ????????# #????????# """ #?????" #/# ##????? | | ????????# #????????# """ #????? %=* ???? | | ????????# #????????# """ #?????" /=%[ ????? | | ????????# #????????# #?????" * ???? | | ????????# #????????#####+#???? " % #???? | | ????????# #????????????# #???? ? # ## ????? | | ????????# #????????????# #???#+#?### %# ##????? | | ????????+ +?????????####+##### ##### # #????? | | ????????# #?????????#![^ # =# ?????? | | ######### ########### [ / # #?????? | | # # ##! # # #?????? | | """ # # #####+########### ##??????? | | """ # # #???# #?### ##### ######### | | """ # # #???# #?# #!! # """ | | + + #???# #?# # # ! # "T" | +----------------------------------------------------+ Best States ------------- Heat Dissipation 28 Energy Generation 19 Energy Capacity 390 Matter Stores 300 Matter Capacity 300 Sight Range 16 Terrain Scan Density 10 Resistance: KI 20 Resistance: TH 20 Resistance: EX 20 Resistance: EM 20 Resistance: I 20 Resistance: S 20 Resistance: P 20 Evasion (%) 45 Launcher Accuracy 20 Recoil Reduction 2 Offensive Hacking 10 Item Schematics ----------------- None Robot Schematics ------------------ None Fabricated ------------ Nothing Repaired ---------- Nothing Alien Tech Used ----------------- None Achievements -------------- None Challenges ------------ None Game ------ Seed XenonRapidAirjet Manual? 0 Play Time 00:14:27 Cumulative 4.1 hours Start 2025.09.30 @ 14:11:37 End 2025.09.30 @ 14:28:26 Sessions 1 Manual Loads 0 Difficulty Adventurer Special Mode None Game No. 9 Rogue 4 Adventurer 5 Explorer 0 Win Type - Total 0 Types 0/0/0/0/0/0/0/0/0/0 Lore% 1 Gallery% 9 Achievement% 10 Wizard Run 0 Options --------- Layout 0 ASCII 0 Keyboard 1 Movement Arrows Keybinds 0 Fullscreen 1 Font 24/Smallcaps Map View 76x50 Zoom Use 7% Tactical HUD 0 Map Filters NONE Filters NONE Steam 1 RUN: b7f753ad-4f61-4e04-b966-f46536a36bbe